[Event "Late-Titled-Tuesday-Blitz-April-23-2024"]
[Site "Chess.com"]
[Date "2024.04.23"]
[Round "2"]
[White "TheoSlade"]
[Black "Smoking_Crow"]
[Result "1/2-1/2"]
[WhiteElo "2396"]
[BlackElo "2606"]
[TimeControl "180+1"]
[EndTime "14:20:00 PDT"]
[Termination "Game drawn by stalemate"]

1. d4 {[%clk 0:03:00.9]} 1... d5 {[%clk 0:02:55.9]} 2. c4 {[%clk 0:03:00.9]}
2... c6 {[%clk 0:02:56.3]} 3. cxd5 {[%clk 0:03:00.8]} 3... cxd5 {[%clk
0:02:57.2]} 4. Bf4 {[%clk 0:03:01.2]} 4... Nc6 {[%clk 0:02:57.1]} 5. e3 {[%clk
0:03:01.6]} 5... a6 {[%clk 0:02:57.3]} 6. Nc3 {[%clk 0:03:01.5]} 6... Nf6 {[%clk
0:02:57.5]} 7. Be2 {[%clk 0:03:01.5]} 7... Bf5 {[%clk 0:02:57.3]} 8. Nf3 {[%clk
0:03:02.1]} 8... e6 {[%clk 0:02:57.2]} 9. Qb3 {[%clk 0:03:01.8]} 9... Qc8 {[%clk
0:02:55]} 10. O-O {[%clk 0:02:50]} 10... Be7 {[%clk 0:02:54.2]} 11. Na4 {[%clk
0:02:47.4]} 11... Bd8 {[%clk 0:02:52]} 12. Bd6 {[%clk 0:02:34.4]} 12... Ne4
{[%clk 0:02:47.2]} 13. Ba3 {[%clk 0:02:35]} 13... b5 {[%clk 0:02:43.5]} 14. Nc5
{[%clk 0:02:22.1]} 14... Nxc5 {[%clk 0:02:42.1]} 15. Bxc5 {[%clk 0:02:21]} 15...
Be7 {[%clk 0:02:42.1]} 16. Rfc1 {[%clk 0:02:11.4]} 16... Qb7 {[%clk 0:02:41.4]}
17. Bxe7 {[%clk 0:01:37.8]} 17... Nxe7 {[%clk 0:02:41.7]} 18. Rc5 {[%clk
0:01:35.2]} 18... O-O {[%clk 0:02:40]} 19. Rac1 {[%clk 0:01:35.7]} 19... Rac8
{[%clk 0:02:37.6]} 20. Ne5 {[%clk 0:01:31.4]} 20... f6 {[%clk 0:02:34.5]} 21.
Nd3 {[%clk 0:01:26.3]} 21... Bxd3 {[%clk 0:02:34.2]} 22. Bxd3 {[%clk 0:01:23.7]}
22... Rxc5 {[%clk 0:02:34.2]} 23. Rxc5 {[%clk 0:01:23.5]} 23... Rc8 {[%clk
0:02:31.9]} 24. Qc2 {[%clk 0:01:23.2]} 24... Rxc5 {[%clk 0:02:29.1]} 25. Qxc5
{[%clk 0:01:16.9]} 25... Kf7 {[%clk 0:02:28.2]} 26. h3 {[%clk 0:01:10.2]} 26...
f5 {[%clk 0:02:24.5]} 27. a3 {[%clk 0:01:06.2]} 27... Qc6 {[%clk 0:02:23.9]} 28.
Qxc6 {[%clk 0:00:59.8]} 28... Nxc6 {[%clk 0:02:24.8]} 29. Kf1 {[%clk 0:01:00.3]}
29... Ke7 {[%clk 0:02:22.4]} 30. a4 {[%clk 0:00:57.5]} 30... Na7 {[%clk
0:02:20.5]} 31. Ke2 {[%clk 0:00:54.7]} 31... Kd6 {[%clk 0:02:18.1]} 32. Kd2
{[%clk 0:00:55.2]} 32... Kc6 {[%clk 0:02:17.1]} 33. Kc3 {[%clk 0:00:55.6]} 33...
Kb6 {[%clk 0:02:15.9]} 34. axb5 {[%clk 0:00:54.4]} 34... axb5 {[%clk 0:02:14.6]}
35. g4 {[%clk 0:00:49.4]} 35... g6 {[%clk 0:02:13.8]} 36. gxf5 {[%clk
0:00:48.5]} 36... gxf5 {[%clk 0:02:14.7]} 37. Be2 {[%clk 0:00:48.7]} 37... Nc6
{[%clk 0:02:12.5]} 38. Bh5 {[%clk 0:00:48.8]} 38... b4+ {[%clk 0:01:46.4]} 39.
Kb3 {[%clk 0:00:48.9]} 39... e5 {[%clk 0:01:45.5]} 40. dxe5 {[%clk 0:00:44.8]}
40... Kc5 {[%clk 0:01:43.4]} 41. f4 {[%clk 0:00:39.6]} 41... d4 {[%clk
0:01:42.1]} 42. exd4+ {[%clk 0:00:38.2]} 42... Nxd4+ {[%clk 0:01:43]} 43. Ka4
{[%clk 0:00:37.5]} 43... Ne6 {[%clk 0:01:41.2]} 44. Bd1 {[%clk 0:00:26.8]} 44...
Nxf4 {[%clk 0:01:39.1]} 45. Bc2 {[%clk 0:00:27.5]} 45... h6 {[%clk 0:01:29.8]}
46. Bxf5 {[%clk 0:00:26.5]} 46... Nd5 {[%clk 0:01:30.1]} 47. e6 {[%clk
0:00:24.7]} 47... Ne7 {[%clk 0:01:25.9]} 48. Bg4 {[%clk 0:00:25.3]} 48... Nd5
{[%clk 0:01:24.4]} 49. b3 {[%clk 0:00:23.4]} 49... Ne7 {[%clk 0:01:18.9]} 50.
Ka5 {[%clk 0:00:24]} 50... Nd5 {[%clk 0:01:15]} 51. Bf3 {[%clk 0:00:24.3]} 51...
Ne7 {[%clk 0:01:13.8]} 52. Be4 {[%clk 0:00:24.9]} 52... Kd4 {[%clk 0:01:12.7]}
53. Bg2 {[%clk 0:00:24.4]} 53... Kc3 {[%clk 0:01:12.5]} 54. Ka4 {[%clk
0:00:25.1]} 54... Nf5 {[%clk 0:01:11.7]} 55. Be4 {[%clk 0:00:21.9]} 55... Ne7
{[%clk 0:01:10.3]} 56. h4 {[%clk 0:00:22.2]} 56... Nc8 {[%clk 0:01:09.2]} 57. h5
{[%clk 0:00:21.1]} 57... Ne7 {[%clk 0:01:08.6]} 58. Bf3 {[%clk 0:00:20]} 58...
Nc8 {[%clk 0:01:04.9]} 59. Bd1 {[%clk 0:00:20]} 59... Kd2 {[%clk 0:01:00.1]} 60.
Bf3 {[%clk 0:00:17.7]} 60... Kc3 {[%clk 0:00:59.8]} 61. Bg4 {[%clk 0:00:18.1]}
61... Ne7 {[%clk 0:00:56]} 62. Bf3 {[%clk 0:00:18.3]} 62... Nf5 {[%clk
0:00:54.4]} 63. Bd5 {[%clk 0:00:16.9]} 63... Kd4 {[%clk 0:00:52.6]} 64. Bc4
{[%clk 0:00:16]} 64... Kc5 {[%clk 0:00:50.7]} 65. Ka5 {[%clk 0:00:16.6]} 65...
Ne7 {[%clk 0:00:40.4]} 66. Ka6 {[%clk 0:00:17]} 66... Nc6 {[%clk 0:00:38.2]} 67.
Kb7 {[%clk 0:00:16]} 67... Kd6 {[%clk 0:00:38.3]} 68. Kb6 {[%clk 0:00:14.6]}
68... Ne5 {[%clk 0:00:37.9]} 69. Kb5 {[%clk 0:00:14.2]} 69... Ng4 {[%clk
0:00:38.1]} 70. Kxb4 {[%clk 0:00:13.5]} 70... Nf6 {[%clk 0:00:38.8]} 71. Be2
{[%clk 0:00:12]} 71... Kxe6 {[%clk 0:00:38.7]} 72. Kc5 {[%clk 0:00:12]} 72...
Ne4+ {[%clk 0:00:38.2]} 73. Kc6 {[%clk 0:00:10.6]} 73... Nc3 {[%clk 0:00:33.5]}
74. Bg4+ {[%clk 0:00:10.1]} 74... Ke5 {[%clk 0:00:33.4]} 75. b4 {[%clk
0:00:10.9]} 75... Kf4 {[%clk 0:00:33.6]} 76. Bd7 {[%clk 0:00:10.6]} 76... Kg5
{[%clk 0:00:33.3]} 77. Be8 {[%clk 0:00:11]} 77... Kf6 {[%clk 0:00:33.5]} 78. b5
{[%clk 0:00:11.2]} 78... Ke7 {[%clk 0:00:33.8]} 79. Bg6 {[%clk 0:00:10.6]} 79...
Nxb5 {[%clk 0:00:30.1]} 80. Kxb5 {[%clk 0:00:11.5]} 80... Kf6 {[%clk 0:00:30.9]}
81. Kc6 {[%clk 0:00:10.2]} 81... Kg7 {[%clk 0:00:31.8]} 82. Kd7 {[%clk
0:00:10.8]} 82... Kh8 {[%clk 0:00:32.7]} 83. Ke6 {[%clk 0:00:11.4]} 83... Kg8
{[%clk 0:00:33.6]} 84. Kf6 {[%clk 0:00:12.1]} 84... Kh8 {[%clk 0:00:34.5]} 85.
Bf5 {[%clk 0:00:12.2]} 85... Kg8 {[%clk 0:00:35.4]} 86. Kg6 {[%clk 0:00:12.9]}
86... Kh8 {[%clk 0:00:36.3]} 87. Kxh6 {[%clk 0:00:13.6]} 87... Kg8 {[%clk
0:00:37.2]} 88. Kg6 {[%clk 0:00:14.4]} 88... Kh8 {[%clk 0:00:38.1]} 89. h6
{[%clk 0:00:10.2]} 89... Kg8 {[%clk 0:00:39]} 90. Bg4 {[%clk 0:00:11.1]} 90...
Kh8 {[%clk 0:00:39.9]} 91. Bh5 {[%clk 0:00:12]} 91... Kg8 {[%clk 0:00:40.8]} 92.
Bf3 {[%clk 0:00:12.9]} 92... Kh8 {[%clk 0:00:41.7]} 93. Be2 {[%clk 0:00:13.8]}
93... Kg8 {[%clk 0:00:42.4]} 94. Bd1 {[%clk 0:00:14.7]} 94... Kh8 {[%clk
0:00:43.1]} 95. Bc2 {[%clk 0:00:15.6]} 95... Kg8 {[%clk 0:00:44]} 96. Bb3+
{[%clk 0:00:16.5]} 96... Kh8 {[%clk 0:00:44.9]} 97. Ba4 {[%clk 0:00:17.4]} 97...
Kg8 {[%clk 0:00:45.8]} 98. Bb5 {[%clk 0:00:18.3]} 98... Kh8 {[%clk 0:00:46.7]}
99. Bc4 {[%clk 0:00:19.2]} 1/2-1/2

[Event "Late-Titled-Tuesday-Blitz-April-23-2024"]
[Site "Chess.com"]
[Date "2024.04.23"]
[Round "2"]
[White "ahkashefi2800"]
[Black "MyDream003"]
[Result "0-1"]
[WhiteElo "2597"]
[BlackElo "2843"]
[TimeControl "180+1"]
[EndTime "14:20:02 PDT"]
[Termination "MyDream003 won on time"]

1. g3 {[%clk 0:02:55.1]} 1... g6 {[%clk 0:02:59.2]} 2. Bg2 {[%clk 0:02:56]} 2...
Bg7 {[%clk 0:02:59.2]} 3. c4 {[%clk 0:02:56.6]} 3... c6 {[%clk 0:02:58.6]} 4. d3
{[%clk 0:02:56.4]} 4... Nf6 {[%clk 0:02:58.5]} 5. e4 {[%clk 0:02:53.4]} 5... d6
{[%clk 0:02:58]} 6. Ne2 {[%clk 0:02:53.1]} 6... h5 {[%clk 0:02:54.1]} 7. Nbc3
{[%clk 0:02:48]} 7... h4 {[%clk 0:02:54.2]} 8. h3 {[%clk 0:02:35]} 8... hxg3
{[%clk 0:02:52.9]} 9. fxg3 {[%clk 0:02:34.7]} 9... Na6 {[%clk 0:02:45.5]} 10.
Be3 {[%clk 0:02:29]} 10... Qa5 {[%clk 0:02:40.2]} 11. Qd2 {[%clk 0:02:28]} 11...
Nc5 {[%clk 0:02:33.1]} 12. O-O-O {[%clk 0:02:13.4]} 12... Be6 {[%clk 0:02:23.9]}
13. d4 {[%clk 0:01:42.8]} 13... Na4 {[%clk 0:02:17.9]} 14. d5 {[%clk 0:01:40.9]}
14... Bd7 {[%clk 0:01:50.7]} 15. Kb1 {[%clk 0:01:36.7]} 15... Nxc3+ {[%clk
0:01:45.1]} 16. Nxc3 {[%clk 0:01:31.2]} 16... c5 {[%clk 0:01:21]} 17. g4 {[%clk
0:00:55.1]} 17... Nh7 {[%clk 0:01:07.7]} 18. Rhf1 {[%clk 0:00:44.2]} 18... g5
{[%clk 0:01:00.1]} 19. Qf2 {[%clk 0:00:24]} 19... Rf8 {[%clk 0:00:53.3]} 20. Qc2
{[%clk 0:00:16.3]} 20... Be5 {[%clk 0:00:48.4]} 21. Bd2 {[%clk 0:00:11.6]} 21...
Qa6 {[%clk 0:00:46.4]} 22. Ne2 {[%clk 0:00:10.2]} 22... O-O-O {[%clk 0:00:31.1]}
23. Rf3 {[%clk 0:00:10]} 23... Ba4 {[%clk 0:00:29.4]} 24. b3 {[%clk 0:00:09.5]}
24... Bd7 {[%clk 0:00:29.7]} 25. Nc1 {[%clk 0:00:08.9]} 25... Kb8 {[%clk
0:00:29.5]} 26. Bc3 {[%clk 0:00:07.8]} 26... f6 {[%clk 0:00:25.4]} 27. Rdf1
{[%clk 0:00:07.1]} 27... Rh8 {[%clk 0:00:25.4]} 28. Nd3 {[%clk 0:00:06.9]} 28...
Bxc3 {[%clk 0:00:25.4]} 29. Qxc3 {[%clk 0:00:06.8]} 29... Ka8 {[%clk 0:00:25.6]}
30. R1f2 {[%clk 0:00:04.9]} 30... Qb6 {[%clk 0:00:25.7]} 31. Kb2 {[%clk
0:00:04.8]} 31... Qc7 {[%clk 0:00:26.2]} 32. Qc2 {[%clk 0:00:04.8]} 32... Nf8
{[%clk 0:00:26.5]} 33. Qd2 {[%clk 0:00:04.6]} 33... Ng6 {[%clk 0:00:26.8]} 34.
Qc3 {[%clk 0:00:04.4]} 34... a6 {[%clk 0:00:23.2]} 35. Re3 {[%clk 0:00:04.4]}
35... Rh7 {[%clk 0:00:23.6]} 36. Ka1 {[%clk 0:00:04.4]} 36... Rdh8 {[%clk
0:00:24]} 37. Rb2 {[%clk 0:00:04.1]} 37... Rc8 {[%clk 0:00:19.2]} 38. b4 {[%clk
0:00:04]} 38... cxb4 {[%clk 0:00:19]} 39. Rxb4 {[%clk 0:00:04.9]} 39... b6
{[%clk 0:00:08.7]} 40. Re1 {[%clk 0:00:04.9]} 40... Ka7 {[%clk 0:00:09.4]} 41.
Reb1 {[%clk 0:00:04.4]} 41... Rb8 {[%clk 0:00:10.1]} 42. Qd4 {[%clk 0:00:04.4]}
42... Rhh8 {[%clk 0:00:09.3]} 43. Bf1 {[%clk 0:00:04.1]} 43... Rhc8 {[%clk
0:00:09.2]} 44. Qb2 {[%clk 0:00:03.4]} 44... a5 {[%clk 0:00:08.3]} 45. Rb3
{[%clk 0:00:02.5]} 45... Nf8 {[%clk 0:00:07.9]} 46. Qd4 {[%clk 0:00:02.3]} 46...
Be8 {[%clk 0:00:08]} 47. Ra3 {[%clk 0:00:02.7]} 47... Ka8 {[%clk 0:00:07.1]} 48.
Rab3 {[%clk 0:00:02.6]} 48... Nd7 {[%clk 0:00:07.5]} 49. R3b2 {[%clk 0:00:03.1]}
49... Bg6 {[%clk 0:00:07.8]} 50. Rb3 {[%clk 0:00:02.9]} 50... Ka7 {[%clk
0:00:08.4]} 51. Ra3 {[%clk 0:00:03.1]} 51... Ka8 {[%clk 0:00:08.1]} 52. Rb5
{[%clk 0:00:03.4]} 52... Rb7 {[%clk 0:00:08.3]} 53. Be2 {[%clk 0:00:02.9]} 53...
Rcb8 {[%clk 0:00:08.8]} 54. Kb2 {[%clk 0:00:03.2]} 54... Nc5 {[%clk 0:00:09]}
55. Nb4 {[%clk 0:00:03.3]} 55... Be8 {[%clk 0:00:06.6]} 56. Na6 {[%clk
0:00:03.2]} 56... Nxa6 {[%clk 0:00:06.7]} 57. Raxa5 {[%clk 0:00:01.8]} 57...
bxa5 {[%clk 0:00:06.6]} 58. a4 {[%clk 0:00:02.2]} 58... Nc5 {[%clk 0:00:06]} 59.
Ka3 {[%clk 0:00:01.9]} 59... Bxb5 {[%clk 0:00:06.4]} 60. cxb5 {[%clk 0:00:02.1]}
60... Qb6 {[%clk 0:00:06.9]} 61. Qd2 {[%clk 0:00:01.3]} 61... Rc7 {[%clk
0:00:07.4]} 62. e5 {[%clk 0:00:01.4]} 62... Rbc8 {[%clk 0:00:07.8]} 63. exf6
{[%clk 0:00:01.4]} 63... exf6 {[%clk 0:00:08.7]} 0-1

[Event "Late-Titled-Tuesday-Blitz-April-23-2024"]
[Site "Chess.com"]
[Date "2024.04.23"]
[Round "2"]
[White "enriquebutti"]
[Black "zverr1"]
[Result "1/2-1/2"]
[WhiteElo "2172"]
[BlackElo "2457"]
[TimeControl "180+1"]
[EndTime "14:20:11 PDT"]
[Termination "Game drawn by agreement"]

1. d4 {[%clk 0:02:59.2]} 1... Nf6 {[%clk 0:02:58.6]} 2. Nf3 {[%clk 0:02:58.5]}
2... d5 {[%clk 0:02:57.4]} 3. c4 {[%clk 0:02:57.5]} 3... e6 {[%clk 0:02:57.9]}
4. Nc3 {[%clk 0:02:56.6]} 4... Nbd7 {[%clk 0:02:55.9]} 5. e3 {[%clk 0:02:55.5]}
5... Be7 {[%clk 0:02:36.3]} 6. b3 {[%clk 0:02:54.6]} 6... O-O {[%clk 0:02:30.2]}
7. Bb2 {[%clk 0:02:54.1]} 7... b6 {[%clk 0:02:29.8]} 8. Bd3 {[%clk 0:02:53.4]}
8... Bb7 {[%clk 0:02:29.7]} 9. O-O {[%clk 0:02:52.4]} 9... a6 {[%clk 0:02:26.4]}
10. Qe2 {[%clk 0:02:51.4]} 10... Ne4 {[%clk 0:02:24.6]} 11. Rfd1 {[%clk
0:02:49.8]} 11... f5 {[%clk 0:02:20.1]} 12. Rac1 {[%clk 0:02:48.3]} 12... Bd6
{[%clk 0:02:13.6]} 13. Na4 {[%clk 0:02:37]} 13... Qe7 {[%clk 0:02:09.4]} 14. Ne5
{[%clk 0:02:35.4]} 14... Bxe5 {[%clk 0:01:55.4]} 15. dxe5 {[%clk 0:02:34.7]}
15... Ndc5 {[%clk 0:01:53.7]} 16. Ba3 {[%clk 0:02:26.9]} 16... Bc6 {[%clk
0:01:37.2]} 17. Nxc5 {[%clk 0:02:24.5]} 17... Nxc5 {[%clk 0:01:37.1]} 18. cxd5
{[%clk 0:02:18.2]} 18... exd5 {[%clk 0:01:23.7]} 19. f4 {[%clk 0:02:08.8]} 19...
g5 {[%clk 0:01:05.7]} 20. Bxc5 {[%clk 0:01:59.2]} 20... bxc5 {[%clk 0:01:04.8]}
21. Qc2 {[%clk 0:01:58.6]} 21... gxf4 {[%clk 0:00:52.1]} 22. exf4 {[%clk
0:01:57.7]} 22... c4 {[%clk 0:00:52.6]} 23. bxc4 {[%clk 0:01:56.6]} 23... d4
{[%clk 0:00:49.9]} 24. Bxf5 {[%clk 0:01:47.2]} 24... Kh8 {[%clk 0:00:30.6]} 25.
g3 {[%clk 0:01:40]} 25... Qc5 {[%clk 0:00:25.6]} 26. Bd3 {[%clk 0:01:37.1]}
26... Rae8 {[%clk 0:00:23]} 27. Qe2 {[%clk 0:01:27.2]} 27... Bb7 {[%clk
0:00:18.9]} 28. Re1 {[%clk 0:01:20.7]} 28... Re7 {[%clk 0:00:17.6]} 29. Qf2
{[%clk 0:01:14.1]} 29... Rg7 {[%clk 0:00:17.6]} 30. Be4 {[%clk 0:01:10.4]} 30...
Bc8 {[%clk 0:00:18.2]} 31. Red1 {[%clk 0:01:04.5]} 31... Be6 {[%clk 0:00:16.7]}
32. Rxd4 {[%clk 0:00:55.3]} 32... Rxf4 {[%clk 0:00:16.7]} 33. Rd8+ {[%clk
0:00:54.3]} 33... Bg8 {[%clk 0:00:15.7]} 34. Qxc5 {[%clk 0:00:51.5]} 34... Rxe4
{[%clk 0:00:16.4]} 35. Qf8 {[%clk 0:00:46.9]} 35... Rxe5 {[%clk 0:00:16]} 36.
Rcd1 {[%clk 0:00:44.2]} 36... Reg5 {[%clk 0:00:14.1]} 37. R1d7 {[%clk
0:00:41.8]} 37... R7g6 {[%clk 0:00:13.5]} 38. Rxc7 {[%clk 0:00:37.3]} 38... h5
{[%clk 0:00:12.7]} 39. Rcc8 {[%clk 0:00:36.1]} 39... h4 {[%clk 0:00:12.3]} 40.
Kf2 {[%clk 0:00:35.1]} 40... hxg3+ {[%clk 0:00:12]} 41. hxg3 {[%clk 0:00:36]}
41... Rxg3 {[%clk 0:00:12.9]} 42. Qd6 {[%clk 0:00:33.1]} 42... Rxd6 {[%clk
0:00:12.2]} 43. Rxd6 {[%clk 0:00:32.6]} 43... Rg7 {[%clk 0:00:12.5]} 44. Rxa6
{[%clk 0:00:31.5]} 44... Kh7 {[%clk 0:00:12.3]} 45. Raa8 {[%clk 0:00:30.6]}
45... Be6 {[%clk 0:00:12]} 46. Rc6 {[%clk 0:00:28.8]} 46... Bf5 {[%clk
0:00:10.5]} 47. c5 {[%clk 0:00:28.2]} 47... Be4 {[%clk 0:00:11]} 48. Rcc8 {[%clk
0:00:27.8]} 48... Rg2+ {[%clk 0:00:10]} 49. Ke3 {[%clk 0:00:27.1]} 49... Bxa8
{[%clk 0:00:10.6]} 50. Rxa8 {[%clk 0:00:27]} 50... Rc2 {[%clk 0:00:11.2]} 51.
Kd4 {[%clk 0:00:26.8]} 51... Kg6 {[%clk 0:00:11.8]} 52. Kd5 {[%clk 0:00:26.6]}
52... Kf6 {[%clk 0:00:12.4]} 53. Kc6 {[%clk 0:00:25.4]} 53... Ke6 {[%clk
0:00:12.4]} 54. Re8+ {[%clk 0:00:24.7]} 54... Kf7 {[%clk 0:00:12.2]} 55. Re5
{[%clk 0:00:22.8]} 55... Rxa2 {[%clk 0:00:12.4]} 56. Kd6 {[%clk 0:00:22.6]}
56... Rd2+ {[%clk 0:00:06.7]} 57. Kc7 {[%clk 0:00:22.3]} 57... Rc2 {[%clk
0:00:07]} 58. c6 {[%clk 0:00:22.2]} 58... Kf6 {[%clk 0:00:07.7]} 59. Rd5 {[%clk
0:00:21.7]} 59... Ke6 {[%clk 0:00:07.5]} 60. Rd4 {[%clk 0:00:20.7]} 60... Ke5
{[%clk 0:00:07]} 61. Rd7 {[%clk 0:00:20]} 61... Ke6 {[%clk 0:00:06.6]} 62. Kb7
{[%clk 0:00:19.3]} 62... Rb2+ {[%clk 0:00:07.2]} 63. Kc8 {[%clk 0:00:19.2]}
63... Rc2 {[%clk 0:00:07.5]} 64. c7 {[%clk 0:00:18.9]} 64... Rh2 {[%clk
0:00:07.4]} 65. Rd4 {[%clk 0:00:17.7]} 65... Rb2 {[%clk 0:00:06.2]} 66. Kd8
{[%clk 0:00:16.9]} 66... Ke5 {[%clk 0:00:06.8]} 67. c8=Q {[%clk 0:00:16.1]}
67... Kxd4 {[%clk 0:00:06]} 68. Qc7 {[%clk 0:00:15.3]} 68... Rb4 {[%clk
0:00:05.4]} 69. Qd6+ {[%clk 0:00:14.9]} 69... Kc4 {[%clk 0:00:05.9]} 70. Qc6+
{[%clk 0:00:14.7]} 70... Kb3 {[%clk 0:00:06]} 71. Qb6 {[%clk 0:00:11.8]} 1/2-1/2

[Event "Late-Titled-Tuesday-Blitz-April-23-2024"]
[Site "Chess.com"]
[Date "2024.04.23"]
[Round "2"]
[White "MarkoPe"]
[Black "CaspiIsrael"]
[Result "0-1"]
[WhiteElo "2396"]
[BlackElo "2700"]
[TimeControl "180+1"]
[EndTime "14:20:18 PDT"]
[Termination "CaspiIsrael won on time"]

1. d4 {[%clk 0:03:00]} 1... e6 {[%clk 0:02:57.4]} 2. g3 {[%clk 0:03:00.2]} 2...
c5 {[%clk 0:02:56.3]} 3. Bg2 {[%clk 0:03:00.8]} 3... cxd4 {[%clk 0:02:55.6]} 4.
Nf3 {[%clk 0:03:01.4]} 4... Bb4+ {[%clk 0:02:52.1]} 5. Bd2 {[%clk 0:02:59.4]}
5... Bc5 {[%clk 0:02:51.4]} 6. b4 {[%clk 0:02:17.8]} 6... Bb6 {[%clk 0:02:50.6]}
7. Bf4 {[%clk 0:02:18.4]} 7... f6 {[%clk 0:02:38.3]} 8. Bd6 {[%clk 0:00:58.4]}
8... e5 {[%clk 0:02:37.6]} 9. c3 {[%clk 0:00:54.2]} 9... dxc3 {[%clk 0:02:33.1]}
10. Nxc3 {[%clk 0:00:55.1]} 10... Ne7 {[%clk 0:02:32.3]} 11. Nb5 {[%clk
0:00:43.7]} 11... O-O {[%clk 0:02:31.1]} 12. Rc1 {[%clk 0:00:42]} 12... Nbc6
{[%clk 0:02:29.4]} 13. O-O {[%clk 0:00:40.5]} 13... a6 {[%clk 0:02:29.5]} 14.
Nc3 {[%clk 0:00:37.5]} 14... Bc7 {[%clk 0:02:29.9]} 15. b5 {[%clk 0:00:20.7]}
15... axb5 {[%clk 0:02:20.7]} 16. Nxb5 {[%clk 0:00:21.6]} 16... Bxd6 {[%clk
0:02:20]} 17. Nxd6 {[%clk 0:00:20.3]} 17... Kh8 {[%clk 0:02:18.7]} 18. Qb3
{[%clk 0:00:19.1]} 18... Qa5 {[%clk 0:01:33.2]} 19. Nf7+ {[%clk 0:00:17.8]}
19... Rxf7 {[%clk 0:01:33.6]} 20. Qxf7 {[%clk 0:00:18.7]} 20... Qxa2 {[%clk
0:01:34]} 21. Qf8+ {[%clk 0:00:13]} 21... Qg8 {[%clk 0:01:33.6]} 22. Qxg8+
{[%clk 0:00:10.4]} 22... Kxg8 {[%clk 0:01:34.5]} 23. Nd2 {[%clk 0:00:08.6]}
23... d5 {[%clk 0:01:34.4]} 24. Rfd1 {[%clk 0:00:08.8]} 24... Be6 {[%clk
0:01:34.4]} 25. Nb3 {[%clk 0:00:08.5]} 25... b6 {[%clk 0:01:33.3]} 26. Rb1
{[%clk 0:00:05.1]} 26... Kf7 {[%clk 0:01:32.6]} 27. Nd2 {[%clk 0:00:05.3]} 27...
Rb8 {[%clk 0:01:31.2]} 28. Rdc1 {[%clk 0:00:05.3]} 28... Ke8 {[%clk 0:01:28.9]}
29. e3 {[%clk 0:00:05.7]} 29... Kd7 {[%clk 0:01:29]} 30. Bf1 {[%clk 0:00:06]}
30... Kd6 {[%clk 0:01:25.9]} 31. Bb5 {[%clk 0:00:06.4]} 31... h5 {[%clk
0:01:25.5]} 32. Rd1 {[%clk 0:00:06.7]} 32... Bg4 {[%clk 0:01:21.5]} 33. f3
{[%clk 0:00:06.4]} 33... Be6 {[%clk 0:01:21.6]} 34. Rbc1 {[%clk 0:00:04.5]}
34... f5 {[%clk 0:01:17.6]} 35. Nc4+ {[%clk 0:00:03]} 35... Kc5 {[%clk 0:01:17]}
36. Nxe5+ {[%clk 0:00:02.9]} 36... Kxb5 {[%clk 0:01:17.3]} 37. Nxc6 {[%clk
0:00:01.6]} 37... Nxc6 {[%clk 0:01:17.2]} 38. Rd2 {[%clk 0:00:01.1]} 38... Rc8
{[%clk 0:01:11.2]} 39. Rb2+ {[%clk 0:00:02]} 39... Ka6 {[%clk 0:01:11.4]} 40.
Rcb1 {[%clk 0:00:01.6]} 40... Rb8 {[%clk 0:01:11]} 41. Ra1+ {[%clk 0:00:01.5]}
41... Kb7 {[%clk 0:01:11]} 42. Rc1 {[%clk 0:00:02.4]} 42... Kc8 {[%clk
0:01:10.4]} 43. Rxc6+ {[%clk 0:00:02.3]} 43... Kd7 {[%clk 0:01:10.7]} 44. Rcxb6
{[%clk 0:00:02.9]} 44... Ra8 {[%clk 0:01:06.4]} 45. Rb7+ {[%clk 0:00:03.1]}
45... Kd6 {[%clk 0:01:02.2]} 46. Rxg7 {[%clk 0:00:04]} 46... Ke5 {[%clk
0:00:51.3]} 47. Rh7 {[%clk 0:00:04.1]} 47... Ra3 {[%clk 0:00:46.5]} 48. Kf2
{[%clk 0:00:03.1]} 48... d4 {[%clk 0:00:43.4]} 49. exd4+ {[%clk 0:00:03.3]}
49... Kxd4 {[%clk 0:00:43.8]} 50. Rxh5 {[%clk 0:00:03.8]} 50... Ke5 {[%clk
0:00:41.6]} 51. Rh6 {[%clk 0:00:04.1]} 51... Bd5 {[%clk 0:00:40.1]} 52. Rhb6
{[%clk 0:00:04.1]} 52... Rxf3+ {[%clk 0:00:39.5]} 53. Ke1 {[%clk 0:00:04.5]}
53... Ra3 {[%clk 0:00:36.8]} 54. Re2+ {[%clk 0:00:04.4]} 54... Be4 {[%clk
0:00:35.3]} 55. Kf2 {[%clk 0:00:04.6]} 55... Rf3+ {[%clk 0:00:34.1]} 56. Ke1
{[%clk 0:00:04.9]} 56... Ra3 {[%clk 0:00:34.3]} 57. Rb5+ {[%clk 0:00:04.8]}
57... Kf6 {[%clk 0:00:34.1]} 58. Rb6+ {[%clk 0:00:05]} 58... Kg5 {[%clk
0:00:34.2]} 59. Rb4 {[%clk 0:00:04.7]} 59... Ra1+ {[%clk 0:00:33.6]} 60. Kf2
{[%clk 0:00:04.8]} 60... Rh1 {[%clk 0:00:34]} 61. Ke3 {[%clk 0:00:04.6]} 61...
Bc6 {[%clk 0:00:29.2]} 62. Kd4 {[%clk 0:00:04]} 62... Rd1+ {[%clk 0:00:28.2]}
63. Ke5 {[%clk 0:00:04]} 63... Rd5+ {[%clk 0:00:26.7]} 64. Ke6 {[%clk
0:00:04.2]} 64... Rd1 {[%clk 0:00:24.8]} 65. Rf4 {[%clk 0:00:04.3]} 65... Bd7+
{[%clk 0:00:23.7]} 66. Ke5 {[%clk 0:00:04.5]} 66... Bc8 {[%clk 0:00:23.5]} 67.
Ref2 {[%clk 0:00:03.4]} 67... Re1+ {[%clk 0:00:23]} 68. Kd6 {[%clk 0:00:03.4]}
68... Kg6 {[%clk 0:00:21.9]} 69. Kd5 {[%clk 0:00:03.1]} 69... Bb7+ {[%clk
0:00:21.5]} 70. Kd4 {[%clk 0:00:03.4]} 70... Bc8 {[%clk 0:00:20.8]} 71. Kd3
{[%clk 0:00:03.8]} 71... Rd1+ {[%clk 0:00:20.7]} 72. Ke2 {[%clk 0:00:04]} 72...
Ra1 {[%clk 0:00:20.7]} 73. Ke3 {[%clk 0:00:04.4]} 73... Ra3+ {[%clk 0:00:20.8]}
74. Kd4 {[%clk 0:00:04.8]} 74... Ra5 {[%clk 0:00:21.4]} 75. h4 {[%clk 0:00:04]}
75... Kh5 {[%clk 0:00:20]} 76. R4f3 {[%clk 0:00:03.5]} 76... Kg4 {[%clk
0:00:19.6]} 77. Rf4+ {[%clk 0:00:02.8]} 77... Kxg3 {[%clk 0:00:19.8]} 78. h5
{[%clk 0:00:03.2]} 78... Ra4+ {[%clk 0:00:19.1]} 79. Ke5 {[%clk 0:00:03.6]}
79... Ra6 {[%clk 0:00:17.2]} 80. Rf1 {[%clk 0:00:02.3]} 80... Re6+ {[%clk
0:00:15.8]} 81. Kd5 {[%clk 0:00:02.2]} 81... Rh6 {[%clk 0:00:15.6]} 82. Rxf5
{[%clk 0:00:01.7]} 82... Bxf5 {[%clk 0:00:14]} 83. Rxf5 {[%clk 0:00:02.6]} 83...
Kg4 {[%clk 0:00:14.4]} 0-1